fUSD/lending_fUSD_20250514
["ID","MTS","AMOUNT","RATE_DAILY","PERIOD"]
[361110164,1747264271891,-400.0,0.00012,2]
[361110165,1747264271900,-403.39,0.00012,2]
[361110166,1747264271910,-400.0,0.00012,2]
[361110167,1747264271919,-606.57,0.00012,2]
[361110168,1747264271929,-400.0,0.00012,2]
[361110169,1747264271938,-400.0,0.00012,2]
[361110170,1747264271948,-400.0,0.00012,2]
[361110171,1747264271957,-565.61,0.00012,2]
[361110172,1747264271967,-407.23,0.00012,2]
[361110173,1747264271976,-400.0,0.00012,2]
[361110174,1747264271986,-449.51,0.00012,2]
[361110175,1747264271996,-400.0,0.00012,2]
[361110176,1747264272005,-413.83,0.00012,2]
[361110177,1747264272014,-400.0,0.00012,2]
[361110178,1747264272024,-250.50120616,0.00012,2]
[361110179,1747264272034,-400.0,0.00012,2]
[361110180,1747264272044,-543.08,0.00012,2]
[361110181,1747264272054,-400.0,0.00012,2]
[361110182,1747264272063,-400.0,0.00012,2]
[361110183,1747264272073,-400.0,0.00012,2]
[361110184,1747264272085,-2357.92,0.00012,2]
[361110185,1747264272095,-226.26,0.00012,2]
[361110186,1747264272105,-614.62,0.00012,2]
[361110187,1747264272115,-400.0,0.00012,2]
[361110188,1747264272124,-783.540851,0.00012,2]
[361110189,1747264272136,-783.540851,0.00012,2]
[361110190,1747264272147,-568.91,0.00012,2]
[361110191,1747264272158,-833.67,0.00012,2]
[361110192,1747264272168,-400.0,0.00012,2]
[361110193,1747264272179,-400.0,0.00012,2]
[361110194,1747264272191,-442.74,0.00012,2]
[361110195,1747264272202,-572.77,0.00012,2]
[361110196,1747264272213,-547.5,0.00012,2]
[361110197,1747264272223,-358.2,0.00012,2]
[361110198,1747264272233,-400.0,0.00012,2]
[361110199,1747264272242,-1577.88,0.00012,2]
[361110200,1747264272252,-400.0,0.00012,2]
[361110201,1747264272262,-1143.94,0.00012,2]
[361110202,1747264272272,-428.61,0.00012,2]
[361110203,1747264272282,-400.0,0.00012,2]
[361110204,1747264272291,-461.02,0.00012,2]
[361110205,1747264272300,-400.0,0.00012,2]
[361110206,1747264272309,-571.15,0.00012,2]
[361110207,1747264272319,-400.0,0.00012,2]
[361110208,1747264272328,-400.0,0.00012,2]
[361110209,1747264272337,-151.0,0.00012,2]
[361110210,1747264272347,-151.0,0.00012,2]
[361110211,1747264272356,-575.08,0.00012,2]
[361110212,1747264272365,-176.268124,0.00012,2]
[361110213,1747264272374,-400.0,0.00012,2]
[361110214,1747264272384,-1410.22,0.00012,2]
[361110215,1747264272393,-459.54,0.00012,2]
[361110216,1747264272403,-10000.0,0.00012,2]
[361110217,1747264272413,-500.0,0.00012,2]
[361110218,1747264272423,-151.0,0.00012,2]
[361110219,1747264272433,-151.0,0.00012,2]
[361110220,1747264272442,-1444.34,0.00012,2]
[361110221,1747264272452,-636.01,0.00012,2]
[361110222,1747264272462,-409.88,0.00012,2]
[361110223,1747264272471,-732.07,0.00012,2]
[361110224,1747264272481,-772.23,0.00012,2]
[361110225,1747264272491,-520.06,0.00012,2]
[361110226,1747264272500,-177.496042,0.00012,2]
[361110227,1747264272509,-400.0,0.00012,2]
[361110228,1747264272519,-177.496042,0.00012,2]
[361110229,1747264272528,-400.0,0.00012,2]
[361110230,1747264272538,-2091.64295753,0.00012,2]
[361110231,1747264272548,-1011.91,0.00012,2]
[361110232,1747264272558,-737.17,0.00012,2]
[361110233,1747264272573,-400.0,0.00012,2]
[361110234,1747264272583,-400.0,0.00012,2]
[361110235,1747264272592,-400.0,0.00012,2]
[361110236,1747264272602,-400.0,0.00012,2]
[361110237,1747264272612,-400.0,0.00012,2]
[361110238,1747264272622,-578.03,0.00012,2]
[361110239,1747264272632,-679.98,0.00012,2]
[361110240,1747264272642,-831.99,0.00012,2]
[361110241,1747264272652,-400.0,0.00012,2]
[361110242,1747264272663,-400.0,0.00012,2]
[361110243,1747264272672,-400.0,0.00012,2]
[361110244,1747264272682,-853.7,0.00012,2]
[361110245,1747264272692,-400.0,0.00012,2]
[361110246,1747264272702,-517.5,0.00012,2]
[361110247,1747264272711,-7990.4,0.00012,2]
[361110248,1747264272721,-400.0,0.00012,2]
[361110249,1747264272731,-400.0,0.00012,2]
[361110250,1747264272740,-200.0,0.00012,2]
[361110251,1747264272750,-164.723669,0.00012,2]
[361110252,1747264272760,-164.723669,0.00012,2]
[361110253,1747264272769,-729.601435,0.00012,2]
[361110254,1747264272778,-729.601427,0.00012,2]
[361110255,1747264272787,-200.0,0.00012,2]
[361110256,1747264272797,-300.35,0.00012,2]
[361110257,1747264272806,-304.93,0.00012,2]
[361110258,1747264272816,-303.77,0.00012,2]
[361110259,1747264272825,-305.12,0.00012,2]
[361110260,1747264272835,-301.03,0.00012,2]
[361110261,1747264272844,-303.11,0.00012,2]
[361110262,1747264272854,-302.61,0.00012,2]
[361110263,1747264272863,-304.07,0.00012,2]
[361110264,1747264272873,-304.07,0.00012,2]
[361110265,1747264272883,-300.83,0.00012,2]
[361110266,1747264272892,-300.71,0.00012,2]
[361110267,1747264272901,-302.11,0.00012,2]
[361110268,1747264272911,-305.29,0.00012,2]
[361110269,1747264272920,-303.78,0.00012,2]
[361110270,1747264272930,-304.41,0.00012,2]
[361110271,1747264272939,-1518.62,0.00012001,2]
[361110272,1747264272950,-405.34869686,0.00012001,2]
[361110273,1747264272959,-151.0,0.00012002,2]
[361110274,1747264272969,-151.0,0.00012011,2]
[361110275,1747264272979,-500.0,0.00012021,2]
[361110276,1747264272988,-1000.0,0.00012021,2]
[361110277,1747264272998,-500.0,0.00012021,2]
[361110278,1747264273007,-546.0,0.0001203,2]
[361110279,1747264273018,-301.96,0.00012045,2]
[361110280,1747264273027,-305.94,0.00012045,2]
[361110281,1747264273037,-1000.0,0.00012052,2]
[361110282,1747264273047,-26685.58,0.00012055,2]
[361110283,1747264273057,-150.0,0.0001208,2]
[361110284,1747264273067,-210.0,0.00012081,2]
[361110285,1747264273077,-210.0,0.00012081,2]
[361110286,1747264273086,-210.0,0.00012081,2]
[361110287,1747264273096,-210.0,0.00012081,2]
[361110288,1747264273105,-210.0,0.00012081,2]
[361110289,1747264273115,-210.0,0.00012081,2]
[361110290,1747264273125,-210.0,0.00012081,2]
[361110291,1747264273136,-546.0,0.00012081,2]
[361110292,1747264273147,-546.0,0.00012081,2]
[361110293,1747264273158,-546.0,0.00012081,2]
[361110294,1747264273167,-546.0,0.00012081,2]
[361110295,1747264273177,-546.0,0.00012081,2]
[361110296,1747264273186,-546.0,0.00012081,2]
[361110297,1747264273197,-546.0,0.00012081,2]
[361110298,1747264273208,-546.0,0.00012081,2]
[361110299,1747264273218,-546.0,0.00012081,2]
[361110300,1747264273227,-546.0,0.00012081,2]
[361110301,1747264273237,-546.0,0.00012081,2]
[361110302,1747264273249,-546.0,0.00012081,2]
[361110303,1747264273259,-546.0,0.00012081,2]
[361110304,1747264273268,-546.0,0.00012081,2]
[361110305,1747264273277,-546.0,0.00012081,2]
[361110306,1747264273286,-546.0,0.00012081,2]
[361110307,1747264273296,-546.0,0.00012081,2]
[361110308,1747264273306,-546.0,0.00012081,2]
[361110309,1747264273315,-546.0,0.00012081,2]
[361110310,1747264273324,-305.23,0.00012099,2]
[361110311,1747264273334,-164.723669,0.00012099,2]
[361110312,1747264273344,-164.723663,0.00012099,2]
[361110313,1747264273354,-1680.0,0.00012099,2]
[361110314,1747264273364,-200.0,0.000121,2]
[361110315,1747264273375,-1000.0,0.000121,2]
[361110316,1747264273385,-1000.0,0.0001211,2]
[361110317,1747264273395,-301.46,0.00012137,2]
[361110318,1747264273405,-304.47,0.00012137,2]
[361110319,1747264273414,-301.74,0.00012137,2]
[361110320,1747264273425,-305.62,0.00012137,2]
[361110321,1747264273438,-305.13,0.00012137,2]
[361110322,1747264273449,-304.66,0.00012137,2]
[361110323,1747264273460,-300.33,0.00012137,2]
[361110324,1747264273470,-305.46,0.00012137,2]
[361110325,1747264273479,-303.79,0.00012137,2]
[361110326,1747264273488,-150.0,0.00012151,2]
[361110327,1747264273498,-150.0,0.00012169,2]
[361110328,1747264273507,-150.0,0.0001217,2]
[361110329,1747264273517,-302.8,0.00012175,2]
[361110330,1747264273526,-300.81,0.00012175,2]
[361110331,1747264273536,-305.1,0.00012175,2]
[361110332,1747264273546,-303.58,0.00012176,2]
[361110333,1747264273555,-302.7,0.00012176,2]
[361110334,1747264273569,-302.25,0.00012176,2]
[361110335,1747264273578,-303.06,0.0001218,2]
[361110336,1747264273588,-305.46,0.0001218,2]
[361110337,1747264273597,-303.85,0.0001218,2]
[361110338,1747264273607,-304.07,0.0001218,2]
[361110339,1747264273617,-12435.68774081,0.00012198,2]
[361110340,1747264273627,-1000.0,0.000122,2]
[361110341,1747264273639,-12456.8707492,0.00012224,2]
[361110342,1747264273649,-196.0,0.00012247,2]
[361110343,1747264273660,-1518.62,0.00012263,2]
[361110344,1747264273671,-151.0,0.00012264,2]
[361110345,1747264273681,-151.0,0.00012272,2]
[361110346,1747264273690,-177.496042,0.00012272,2]
[361110347,1747264273700,-177.496041,0.00012272,2]
[361110348,1747264273709,-460.7,0.00012272,2]
[361110349,1747264273719,-400.0,0.00012272,2]
[361110350,1747264273731,-564.43,0.00012272,2]
[361110351,1747264273740,-591.33,0.00012272,2]
[361110352,1747264273750,-400.0,0.00012272,2]
[361110353,1747264273759,-400.0,0.00012272,2]
[361110354,1747264273769,-1034.53,0.00012272,2]
[361110355,1747264273778,-3042.34,0.00012272,2]
[361110356,1747264273788,-400.0,0.00012272,2]
[361110357,1747264273798,-400.0,0.00012272,2]
[361110358,1747264273808,-400.0,0.00012272,2]
[361110359,1747264273818,-400.0,0.00012272,2]
[361110360,1747264273828,-688.76,0.00012272,2]
[361110361,1747264273838,-4870.56,0.00012272,2]
[361110362,1747264274022,-623.04,0.00012272,2]
[361110363,1747264274042,-1611.73,0.00012272,2]
[361110364,1747264274051,-583.04,0.00012272,2]
[361110365,1747264274061,-520.17,0.00012272,2]
[361110366,1747264274071,-400.0,0.00012272,2]
[361110367,1747264274081,-400.0,0.00012272,2]
[361110368,1747264274091,-904.64,0.00012272,2]
[361110369,1747264274101,-400.0,0.00012272,2]
[361110370,1747264274110,-400.0,0.00012272,2]
[361110371,1747264274120,-400.0,0.00012272,2]
[361110372,1747264274130,-455.41,0.00012272,2]
[361110373,1747264274140,-824.3,0.00012272,2]
[361110374,1747264274150,-1128.45,0.00012272,2]
[361110375,1747264274160,-531.71,0.00012272,2]
[361110376,1747264274170,-400.0,0.00012272,2]
[361110377,1747264274179,-1437.463881,0.00012272,2]
[361110378,1747264274189,-662.22,0.00012272,2]
[361110379,1747264274200,-400.0,0.00012272,2]
[361110380,1747264274210,-400.0,0.00012272,2]
[361110381,1747264274220,-400.0,0.00012272,2]
[361110382,1747264274231,-1000.0,0.00012273,2]
[361110383,1747264274240,-406.74511296,0.00012273,2]
[361110384,1747264274250,-400.0,0.00012273,2]
[361110385,1747264274260,-400.0,0.00012273,2]
[361110386,1747264274269,-763.26,0.00012273,2]
[361110387,1747264274279,-315.91735729,0.00012273,2]
[361110388,1747264274288,-603.55,0.00012273,2]
[361110389,1747264274297,-500.0,0.00012273,2]
[361110390,1747264274307,-400.0,0.00012273,2]
[361110391,1747264274316,-400.0,0.00012273,2]
[361110392,1747264274326,-400.0,0.00012273,2]
[361110393,1747264274335,-836.53,0.00012273,2]
[361110394,1747264274345,-250.0,0.00012273,2]
[361110395,1747264274355,-400.0,0.00012273,2]
[361110396,1747264274365,-400.0,0.00012273,2]
[361110397,1747264274374,-547.56,0.00012273,2]
[361110398,1747264274384,-400.0,0.00012273,2]
[361110399,1747264274393,-400.0,0.00012273,2]
[361110400,1747264274403,-453.66,0.00012273,2]
[361110401,1747264274413,-624.04,0.00012273,2]
[361110402,1747264274423,-456.79,0.00012273,2]
[361110403,1747264274433,-400.0,0.00012273,2]
[361110404,1747264274442,-554.63,0.00012273,2]
[361110405,1747264274451,-400.0,0.00012273,2]
[361110406,1747264274462,-400.0,0.00012273,2]
[361110407,1747264274472,-565.99,0.00012273,2]
[361110408,1747264274483,-400.0,0.00012273,2]
[361110409,1747264274493,-450.0,0.00012273,2]
[361110410,1747264274502,-400.0,0.00012273,2]
[361110411,1747264274513,-400.0,0.00012273,2]
[361110412,1747264274523,-400.0,0.00012273,2]
[361110413,1747264274532,-400.0,0.00012273,2]
[361110414,1747264274542,-783.540851,0.00012273,2]
[361110415,1747264274551,-400.0,0.00012273,2]
[361110416,1747264274562,-400.0,0.00012273,2]
[361110417,1747264274573,-400.0,0.00012273,2]
[361110418,1747264274582,-470.57,0.00012273,2]
[361110419,1747264274591,-510.22607812,0.00012273,2]
[361110420,1747264274602,-724.75,0.00012273,2]
[361110421,1747264274612,-1542.16,0.00012273,2]
[361110422,1747264274621,-426.08,0.00012273,2]
[361110423,1747264274631,-400.0,0.00012273,2]
[361110424,1747264274643,-400.0,0.00012273,2]
[361110425,1747264274652,-400.0,0.00012273,2]
[361110426,1747264274662,-400.0,0.00012273,2]
[361110427,1747264274673,-400.0,0.00012273,2]
[361110428,1747264274683,-400.0,0.00012273,2]
[361110429,1747264274693,-400.0,0.00012273,2]
[361110430,1747264274703,-400.0,0.00012273,2]
[361110431,1747264274712,-400.0,0.00012273,2]
[361110432,1747264274722,-400.0,0.00012273,2]
[361110433,1747264274732,-400.0,0.00012273,2]
[361110434,1747264274742,-400.0,0.00012273,2]
[361110435,1747264274752,-151.0,0.00012273,2]
[361110436,1747264274761,-400.0,0.00012273,2]
[361110437,1747264274770,-400.0,0.00012273,2]
[361110438,1747264274780,-400.0,0.00012273,2]
[361110439,1747264274789,-400.0,0.00012273,2]
[361110440,1747264274799,-10000.0,0.00012273,2]
[361110441,1747264274808,-409.69,0.00012273,2]
[361110442,1747264274817,-400.0,0.00012273,2]
[361110443,1747264274827,-151.0,0.00012273,2]
[361110444,1747264274837,-400.0,0.00012273,2]
[361110445,1747264274847,-561.38,0.00012273,2]
[361110446,1747264274857,-400.0,0.00012273,2]
[361110447,1747264274866,-400.0,0.00012273,2]
[361110448,1747264274876,-400.0,0.00012273,2]
[361110449,1747264274885,-400.0,0.00012273,2]
[361110450,1747264274895,-400.0,0.00012273,2]
[361110451,1747264274904,-400.0,0.00012273,2]
[361110452,1747264274914,-400.0,0.00012273,2]
[361110453,1747264274923,-400.0,0.00012273,2]
[361110454,1747264274932,-400.0,0.00012273,2]
[361110455,1747264274942,-483.14,0.00012273,2]
[361110456,1747264274952,-400.0,0.00012273,2]
[361110457,1747264274962,-400.0,0.00012273,2]
[361110458,1747264274971,-400.0,0.00012273,2]
[361110459,1747264274982,-400.0,0.00012273,2]
[361110460,1747264274991,-400.0,0.00012273,2]
[361110461,1747264275001,-1223.31,0.00012273,2]
[361110462,1747264275010,-400.0,0.00012273,2]
[361110463,1747264275020,-400.0,0.00012273,2]
[361110464,1747264275030,-979.31,0.00012273,2]
[361110465,1747264275040,-400.0,0.00012273,2]
[361110466,1747264275050,-400.0,0.00012273,2]
[361110467,1747264275060,-1142.69,0.00012273,2]
[361110468,1747264275069,-400.0,0.00012273,2]
[361110469,1747264275079,-400.0,0.00012273,2]
[361110470,1747264275089,-400.0,0.00012273,2]
[361110471,1747264275098,-686.05,0.00012273,2]
[361110472,1747264275108,-343.05316455,0.00012273,2]
[361110473,1747264275117,-400.0,0.00012273,2]
[361110474,1747264275127,-748.6,0.00012273,2]
[361110475,1747264275137,-417.26,0.00012273,2]
[361110476,1747264275147,-400.0,0.00012273,2]
[361110477,1747264275156,-400.0,0.00012273,2]
[361110478,1747264275166,-1113.06,0.00012273,2]
[361110479,1747264275175,-795.08,0.00012273,2]
[361110480,1747264275185,-400.0,0.00012273,2]
[361110481,1747264275194,-400.0,0.00012273,2]
[361110482,1747264275204,-400.0,0.00012273,2]
[361110483,1747264275213,-1333.23,0.00012273,2]
[361110484,1747264275223,-400.0,0.00012273,2]
[361110485,1747264275233,-2056.57,0.00012273,2]
[361110486,1747264275243,-694.96,0.00012273,2]
[361110487,1747264275253,-400.0,0.00012273,2]
[361110488,1747264275263,-915.71,0.00012273,2]
[361110489,1747264275273,-412.24,0.00012273,2]
[361110490,1747264275282,-400.0,0.00012273,2]
[361110491,1747264275292,-906.0,0.00012273,2]
[361110492,1747264275301,-400.0,0.00012273,2]
[361110493,1747264275311,-400.0,0.00012273,2]
[361110494,1747264275321,-920.87,0.00012273,2]
[361110495,1747264275330,-400.0,0.00012273,2]
[361110496,1747264275341,-1261.05,0.00012273,2]
[361110497,1747264275351,-1187.04,0.00012273,2]
[361110498,1747264275360,-400.0,0.00012273,2]
[361110499,1747264275370,-1289.05,0.00012273,2]
[361110500,1747264275380,-400.0,0.00012273,2]
[361110501,1747264275390,-2923.35,0.00012273,2]
[361110502,1747264275400,-400.0,0.00012273,2]
[361110503,1747264275410,-1022.61,0.00012273,2]
[361110504,1747264275419,-400.0,0.00012273,2]
[361110505,1747264275429,-711.84,0.00012273,2]
[361110506,1747264275439,-977.42,0.00012273,2]
[361110507,1747264275449,-400.0,0.00012273,2]
[361110508,1747264275459,-890.2,0.00012273,2]
[361110509,1747264275468,-400.0,0.00012273,2]
[361110510,1747264275478,-1350.79,0.00012273,2]
[361110511,1747264275487,-541.83,0.00012273,2]
[361110512,1747264275497,-298.61215145,0.00012273,2]
[361110513,1747264275507,-400.0,0.00012273,2]
[361110514,1747264275516,-5623.4,0.00012273,2]
[361110515,1747264275527,-1902.44,0.00012273,2]
[361110516,1747264275536,-400.0,0.00012273,2]
[361110517,1747264275546,-400.0,0.00012273,2]
[361110518,1747264275557,-400.0,0.00012273,2]
[361110519,1747264275570,-400.0,0.00012273,2]
[361110520,1747264275580,-400.0,0.00012273,2]
[361110521,1747264275589,-400.0,0.00012273,2]
[361110522,1747264275599,-400.0,0.00012273,2]
[361110523,1747264275608,-413.05868658,0.00012273,2]
[361110524,1747264275619,-708.2,0.00012273,2]
[361110525,1747264275628,-5758.42,0.00012273,2]
[361110526,1747264275638,-3168.59,0.00012273,2]
[361110527,1747264275647,-11160.2,0.00012273,2]
[361110528,1747264275657,-400.0,0.00012273,2]
[361110529,1747264275667,-400.0,0.00012273,2]
[361110530,1747264275677,-425.85,0.00012273,2]
[361110531,1747264275686,-2221.92,0.00012273,2]
[361110532,1747264275696,-400.0,0.00012273,2]
[361110533,1747264275706,-400.0,0.00012273,2]
[361110534,1747264275715,-869.38,0.00012273,2]
[361110535,1747264275726,-400.0,0.00012273,2]
[361110536,1747264275736,-547.37,0.00012273,2]
[361110537,1747264275746,-400.0,0.00012273,2]
[361110538,1747264275755,-1582.57,0.00012273,2]
[361110539,1747264275765,-1327.27,0.00012273,2]
[361110540,1747264275774,-400.0,0.00012273,2]
[361110541,1747264275784,-400.0,0.00012273,2]
[361110542,1747264275793,-400.0,0.00012273,2]
[361110543,1747264275802,-674.11,0.00012273,2]
[361110544,1747264275811,-400.0,0.00012273,2]
[361110545,1747264275821,-400.0,0.00012273,2]
[361110546,1747264275830,-400.0,0.00012273,2]
[361110547,1747264275839,-400.0,0.00012273,2]
[361110548,1747264275849,-400.0,0.00012273,2]
[361110549,1747264275858,-531.23,0.00012273,2]
[361110550,1747264275868,-589.15,0.00012273,2]
[361110551,1747264275877,-467.93,0.00012273,2]
[361110552,1747264275886,-3055.08,0.00012273,2]
[361110553,1747264275895,-906.91,0.00012273,2]
[361110554,1747264275905,-891.28,0.00012273,2]
[361110555,1747264275914,-400.0,0.00012273,2]
[361110556,1747264275923,-400.0,0.00012273,2]
[361110557,1747264275934,-400.77,0.00012273,2]
[361110558,1747264275946,-400.0,0.00012273,2]
[361110559,1747264275957,-400.0,0.00012273,2]
[361110560,1747264275966,-225.79209405,0.00012273,2]
[361110561,1747264275976,-400.0,0.00012273,2]
[361110562,1747264275986,-400.0,0.00012273,2]
[361110563,1747264275996,-983.55,0.00012273,2]
[361110564,1747264276005,-400.0,0.00012273,2]
[361110565,1747264276014,-400.0,0.00012273,2]
[361110566,1747264276024,-588.18,0.00012273,2]
[361110567,1747264276033,-400.0,0.00012273,2]
[361110568,1747264276043,-2072.02,0.00012273,2]
[361110569,1747264276052,-3903.54,0.00012273,2]
[361110570,1747264276062,-211.83148712,0.00012273,2]
[361110571,1747264276071,-400.0,0.00012273,2]
[361110572,1747264276081,-1202.41,0.00012273,2]
[361110573,1747264276091,-400.0,0.00012273,2]
[361110574,1747264276100,-400.0,0.00012273,2]
[361110575,1747264276110,-980.88,0.00012273,2]
[361110576,1747264276120,-400.73,0.00012273,2]
[361110577,1747264276130,-5749.86,0.00012273,2]
[361110578,1747264276141,-498.76,0.00012273,2]
[361110579,1747264276151,-400.0,0.00012273,2]
[361110580,1747264276160,-445.36,0.00012273,2]
[361110581,1747264276170,-400.0,0.00012273,2]
[361110582,1747264276180,-599.43,0.00012273,2]
[361110583,1747264276189,-400.0,0.00012273,2]
[361110584,1747264276200,-20037.7,0.00012273,2]
[361110585,1747264276209,-1349.87,0.00012273,2]
[361110586,1747264276218,-805.12,0.00012273,2]
[361110587,1747264276229,-434.42,0.00012273,2]
[361110588,1747264276238,-892.69,0.00012273,2]
[361110589,1747264276248,-1683.5,0.00012273,2]
[361110590,1747264276259,-437.47,0.00012273,2]
[361110591,1747264276268,-593.48,0.00012273,2]
[361110592,1747264276278,-639.24,0.00012273,2]
[361110593,1747264276287,-5740.66,0.00012273,2]
[361110594,1747264276296,-65970.0,0.00012273,2]
[361110595,1747264276306,-400.0,0.00012273,2]
[361110596,1747264276315,-527.29,0.00012273,2]
[361110597,1747264276324,-1000.0,0.00012273,2]
[361110598,1747264276333,-400.0,0.00012273,2]
[361110599,1747264276342,-400.0,0.00012273,2]
[361110600,1747264276352,-11054.36,0.00012273,2]
[361110601,1747264276362,-1094.62,0.00012273,2]
[361110602,1747264276372,-400.0,0.00012273,2]
[361110603,1747264276382,-400.0,0.00012273,2]
[361110604,1747264276391,-400.0,0.00012273,2]
[361110605,1747264276400,-492.15,0.00012273,2]
[361110606,1747264276410,-400.0,0.00012273,2]
[361110607,1747264276419,-400.0,0.00012273,2]
[361110608,1747264276429,-459.17,0.00012273,2]
[361110609,1747264276438,-400.0,0.00012273,2]
[361110610,1747264276502,-400.0,0.00012273,2]
[361110611,1747264276513,-400.0,0.00012273,2]
[361110612,1747264276522,-2539.0,0.00012273,2]
[361110613,1747264276532,-642.94,0.00012273,2]
[361110614,1747264276542,-400.0,0.00012273,2]
[361110615,1747264276551,-400.0,0.00012273,2]
[361110616,1747264276562,-400.0,0.00012273,2]
[361110617,1747264276573,-400.0,0.00012273,2]
[361110618,1747264276583,-2633.62,0.00012273,2]
[361110619,1747264276592,-1818.85,0.00012273,2]
[361110620,1747264276602,-400.0,0.00012273,2]
[361110621,1747264276612,-362.44757853,0.00012273,2]
[361110622,1747264276622,-2188.1,0.00012273,2]
[361110623,1747264276631,-467.74,0.00012273,2]
[361110624,1747264276640,-560.77,0.00012273,2]
[361110625,1747264276650,-831.49,0.00012273,2]
[361110626,1747264276659,-1172.14,0.00012273,2]
[361110627,1747264276669,-750.29,0.00012273,2]
[361110628,1747264276679,-571.17,0.00012273,2]
[361110629,1747264276688,-151.0,0.00012274,2]
[361110630,1747264276697,-400.0,0.00012274,2]
[361110631,1747264276707,-400.0,0.00012274,2]
[361110632,1747264276716,-303.06,0.00012274,2]
[361110633,1747264276725,-400.0,0.00012274,2]
[361110634,1747264276736,-703.02,0.00012274,2]
[361110635,1747264276746,-400.0,0.00012274,2]
[361110636,1747264276755,-538.13,0.00012274,2]
[361110637,1747264276765,-768.77,0.00012274,2]
[361110638,1747264276774,-400.0,0.00012274,2]
[361110639,1747264276783,-185.5793196,0.00012274,2]
[361110640,1747264276792,-400.0,0.00012274,2]
[361110641,1747264276801,-400.0,0.00012274,2]
[361110642,1747264276815,-400.0,0.00012274,2]
[361110643,1747264276825,-156.5767621,0.00012274,2]
[361110644,1747264276834,-400.0,0.00012274,2]
[361110645,1747264276843,-425.54,0.00012274,2]
[361110646,1747264276852,-400.0,0.00012274,2]
[361110647,1747264276861,-902.52,0.00012274,2]
[361110648,1747264276870,-400.0,0.00012274,2]
[361110649,1747264276880,-444.04,0.00012274,2]
[361110650,1747264276889,-400.0,0.00012274,2]
[361110651,1747264276899,-400.0,0.00012274,2]
[361110652,1747264276909,-400.0,0.00012274,2]
[361110653,1747264276918,-478.11,0.00012274,2]
[361110654,1747264276927,-618.77,0.00012274,2]
[361110655,1747264276936,-914.64,0.00012274,2]
[361110656,1747264276945,-405.64,0.00012274,2]
[361110657,1747264276954,-417.80851711,0.00012274,2]
[361110658,1747264276963,-592.23,0.00012274,2]
[361110659,1747264276973,-1199.27,0.00012274,2]
[361110660,1747264276982,-943.59,0.00012274,2]
[361110661,1747264276992,-322.67493545,0.00012274,2]
[361110662,1747264277001,-400.0,0.00012274,2]
[361110663,1747264277011,-400.0,0.00012274,2]